[Event "Early-Titled-Tuesday-Blitz-March-12-2024"]
[Site "Chess.com"]
[Date "2024.03.12"]
[Round "1"]
[White "ViIIagra"]
[Black "killer_dreams"]
[Result "1-0"]
[WhiteElo "2919"]
[BlackElo "2525"]
[TimeControl "180+1"]
[EndTime "8:07:44 PDT"]
[Termination "ViIIagra won by resignation"]

1. g3 {[%clk 0:02:53.6]} 1... d5 {[%clk 0:02:58.6]} 2. Bg2 {[%clk 0:02:53.4]}
2... Nf6 {[%clk 0:02:58.6]} 3. d3 {[%clk 0:02:47.6]} 3... e6 {[%clk 0:02:56]} 4.
f4 {[%clk 0:02:46.9]} 4... Bc5 {[%clk 0:02:48]} 5. Nf3 {[%clk 0:02:44]} 5... O-O
{[%clk 0:02:46.9]} 6. e3 {[%clk 0:02:39.8]} 6... c6 {[%clk 0:02:38]} 7. O-O
{[%clk 0:02:38.8]} 7... Nbd7 {[%clk 0:02:26.9]} 8. Kh1 {[%clk 0:02:38.2]} 8...
a5 {[%clk 0:02:24]} 9. Qe2 {[%clk 0:02:36.8]} 9... Re8 {[%clk 0:02:19.4]} 10. e4
{[%clk 0:02:24.8]} 10... e5 {[%clk 0:02:00.9]} 11. f5 {[%clk 0:02:22.2]} 11...
dxe4 {[%clk 0:01:56.1]} 12. dxe4 {[%clk 0:02:23.1]} 12... Qb6 {[%clk 0:01:50.7]}
13. Nfd2 {[%clk 0:02:12.1]} 13... Qa6 {[%clk 0:01:17.5]} 14. c4 {[%clk
0:02:12.1]} 14... b5 {[%clk 0:01:10.1]} 15. g4 {[%clk 0:01:56.8]} 15... h6
{[%clk 0:01:00.8]} 16. Nc3 {[%clk 0:01:53]} 16... b4 {[%clk 0:00:57.4]} 17. Na4
{[%clk 0:01:52.6]} 17... Be7 {[%clk 0:00:51.2]} 18. h4 {[%clk 0:01:34.3]} 18...
Nh7 {[%clk 0:00:49.4]} 19. Nf3 {[%clk 0:01:33.8]} 19... f6 {[%clk 0:00:37.1]}
20. Be3 {[%clk 0:01:31]} 20... c5 {[%clk 0:00:20.7]} 21. Rfd1 {[%clk 0:01:30.6]}
21... Qc6 {[%clk 0:00:20.4]} 22. b3 {[%clk 0:01:27]} 22... Bb7 {[%clk
0:00:16.4]} 23. Rd5 {[%clk 0:01:27]} 23... Qc7 {[%clk 0:00:15.5]} 24. g5 {[%clk
0:00:54.6]} 24... Bxd5 {[%clk 0:00:14.1]} 25. cxd5 {[%clk 0:00:55.5]} 25... hxg5
{[%clk 0:00:14.4]} 26. hxg5 {[%clk 0:00:55.5]} 26... fxg5 {[%clk 0:00:15]} 27.
Rd1 {[%clk 0:00:51.5]} 27... Rac8 {[%clk 0:00:13.9]} 28. d6 {[%clk 0:00:50]}
28... Bxd6 {[%clk 0:00:13.1]} 29. Qd2 {[%clk 0:00:50.4]} 29... c4 {[%clk
0:00:08.1]} 30. Qxd6 {[%clk 0:00:48.8]} 30... Qxd6 {[%clk 0:00:08.6]} 31. Rxd6
{[%clk 0:00:49.7]} 31... Ndf6 {[%clk 0:00:09.5]} 32. Nxg5 {[%clk 0:00:48.8]}
32... Nxg5 {[%clk 0:00:09.1]} 33. Bxg5 {[%clk 0:00:49.7]} 33... c3 {[%clk
0:00:09.3]} 34. Nb6 {[%clk 0:00:22.8]} 34... Rcd8 {[%clk 0:00:09]} 35. Rc6
{[%clk 0:00:23]} 35... Rd1+ {[%clk 0:00:09.1]} 36. Kh2 {[%clk 0:00:23.3]} 36...
Ng4+ {[%clk 0:00:09.4]} 37. Kg3 {[%clk 0:00:23.5]} 37... Nf6 {[%clk 0:00:07.2]}
38. Bf3 {[%clk 0:00:22]} 38... Rd3 {[%clk 0:00:06.6]} 39. Kf2 {[%clk 0:00:22.4]}
39... Red8 {[%clk 0:00:06.4]} 40. Nc4 {[%clk 0:00:20.7]} 40... c2 {[%clk
0:00:06]} 41. Nxe5 {[%clk 0:00:19.5]} 41... Rc3 {[%clk 0:00:06.4]} 42. Rxc3
{[%clk 0:00:19.3]} 42... bxc3 {[%clk 0:00:07.3]} 43. Ke2 {[%clk 0:00:17.8]}
43... Rd1 {[%clk 0:00:07.6]} 44. Nd3 {[%clk 0:00:17.3]} 44... Ra1 {[%clk
0:00:06]} 45. Nc1 {[%clk 0:00:17.3]} 45... Rb1 {[%clk 0:00:05.7]} 46. Kd3 {[%clk
0:00:17.5]} 46... Nh7 {[%clk 0:00:05.7]} 47. Be3 {[%clk 0:00:17.3]} 47... Ra1
{[%clk 0:00:05.7]} 48. Kxc2 {[%clk 0:00:17.4]} 48... Nf6 {[%clk 0:00:06.2]} 49.
Bd4 {[%clk 0:00:17.7]} 49... Nd7 {[%clk 0:00:05.5]} 50. e5 {[%clk 0:00:18.3]}
50... Kf8 {[%clk 0:00:05]} 51. Bxc3 {[%clk 0:00:16.3]} 51... Rxc1+ {[%clk
0:00:03.9]} 52. Kxc1 {[%clk 0:00:17.2]} 1-0

[Event "Early-Titled-Tuesday-Blitz-March-12-2024"]
[Site "Chess.com"]
[Date "2024.03.12"]
[Round "1"]
[White "KnightmareJoker"]
[Black "LeRoidesChampions"]
[Result "0-1"]
[WhiteElo "2214"]
[BlackElo "2617"]
[TimeControl "180+1"]
[EndTime "8:07:47 PDT"]
[Termination "LeRoidesChampions won on time"]

1. e4 {[%clk 0:03:00.9]} 1... e6 {[%clk 0:02:57.7]} 2. d4 {[%clk 0:03:00.6]}
2... d5 {[%clk 0:02:57.4]} 3. Nc3 {[%clk 0:03:01.2]} 3... dxe4 {[%clk
0:02:55.1]} 4. Nxe4 {[%clk 0:03:01.8]} 4... Nf6 {[%clk 0:02:55.9]} 5. Nxf6+
{[%clk 0:03:02.1]} 5... gxf6 {[%clk 0:02:56.8]} 6. Nf3 {[%clk 0:03:02.7]} 6...
b6 {[%clk 0:02:55]} 7. Be2 {[%clk 0:02:58.8]} 7... Bb7 {[%clk 0:02:55.1]} 8. c3
{[%clk 0:02:58.9]} 8... Nd7 {[%clk 0:02:55.6]} 9. Bf4 {[%clk 0:02:58.9]} 9... f5
{[%clk 0:02:53.2]} 10. Rg1 {[%clk 0:02:48.2]} 10... Nf6 {[%clk 0:02:48.4]} 11.
Ne5 {[%clk 0:02:39.5]} 11... Qd5 {[%clk 0:02:30.8]} 12. Bh5 {[%clk 0:02:11]}
12... Nxh5 {[%clk 0:01:56.9]} 13. Qxh5 {[%clk 0:02:09.5]} 13... Qe4+ {[%clk
0:01:56]} 14. Be3 {[%clk 0:02:09.2]} 14... O-O-O {[%clk 0:01:54.2]} 15. Nxf7
{[%clk 0:01:56.8]} 15... f4 {[%clk 0:01:50.4]} 16. Nxd8 {[%clk 0:01:42.2]} 16...
fxe3 {[%clk 0:01:48]} 17. Nxb7 {[%clk 0:01:42]} 17... exf2+ {[%clk 0:01:26]} 18.
Kxf2 {[%clk 0:01:42.9]} 18... Be7 {[%clk 0:01:26.4]} 19. Rge1 {[%clk 0:01:21.1]}
19... Qxb7 {[%clk 0:01:02.4]} 20. Kg1 {[%clk 0:01:17]} 20... Rg8 {[%clk
0:00:59.6]} 21. Qh3 {[%clk 0:01:08]} 21... Kb8 {[%clk 0:00:52.3]} 22. Rxe6
{[%clk 0:01:05.9]} 22... Bd6 {[%clk 0:00:52.9]} 23. Rae1 {[%clk 0:01:02.2]}
23... Qc6 {[%clk 0:00:51.3]} 24. R1e2 {[%clk 0:00:46.2]} 24... Kb7 {[%clk
0:00:45.6]} 25. Kh1 {[%clk 0:00:34]} 25... Rf8 {[%clk 0:00:43.7]} 26. Re1 {[%clk
0:00:26.1]} 26... Qc4 {[%clk 0:00:43.2]} 27. g3 {[%clk 0:00:19.9]} 27... Rf2
{[%clk 0:00:38.6]} 28. Qh5 {[%clk 0:00:12.7]} 28... Rxb2 {[%clk 0:00:25.5]} 29.
Qf3+ {[%clk 0:00:11]} 29... Ka6 {[%clk 0:00:22.8]} 30. R6e2 {[%clk 0:00:11.4]}
30... Rxa2 {[%clk 0:00:19.7]} 31. Rxa2+ {[%clk 0:00:11.6]} 31... Qxa2 {[%clk
0:00:20.6]} 32. Qe2+ {[%clk 0:00:11.6]} 32... Qxe2 {[%clk 0:00:19.4]} 33. Rxe2
{[%clk 0:00:12.5]} 33... Kb5 {[%clk 0:00:20.1]} 34. Ra2 {[%clk 0:00:12.8]} 34...
a5 {[%clk 0:00:20.5]} 35. Kg2 {[%clk 0:00:13.5]} 35... a4 {[%clk 0:00:20.9]} 36.
Kf3 {[%clk 0:00:13.2]} 36... a3 {[%clk 0:00:21.3]} 37. Ke2 {[%clk 0:00:12.3]}
37... Kc4 {[%clk 0:00:22]} 38. Kd2 {[%clk 0:00:11]} 38... Kb3 {[%clk 0:00:22.6]}
39. Ra1 {[%clk 0:00:11.7]} 39... Kb2 {[%clk 0:00:23.2]} 40. Rc1 {[%clk
0:00:09.3]} 40... a2 {[%clk 0:00:23.2]} 41. Rc2+ {[%clk 0:00:09.9]} 41... Kb3
{[%clk 0:00:23.6]} 42. Rc1 {[%clk 0:00:10.1]} 42... Ba3 {[%clk 0:00:24.1]} 43.
Ra1 {[%clk 0:00:07]} 43... b5 {[%clk 0:00:20.5]} 44. d5 {[%clk 0:00:05]} 44...
Bd6 {[%clk 0:00:15.1]} 0-1

[Event "Early-Titled-Tuesday-Blitz-March-12-2024"]
[Site "Chess.com"]
[Date "2024.03.12"]
[Round "1"]
[White "Cryptinz"]
[Black "Dyadya81"]
[Result "0-1"]
[WhiteElo "2514"]
[BlackElo "2909"]
[TimeControl "180+1"]
[EndTime "8:07:50 PDT"]
[Termination "Dyadya81 won on time"]

1. e4 {[%clk 0:02:57.6]} 1... c6 {[%clk 0:03:00.2]} 2. d4 {[%clk 0:02:54.7]}
2... d5 {[%clk 0:03:00.2]} 3. Nc3 {[%clk 0:02:55.6]} 3... dxe4 {[%clk
0:02:59.8]} 4. Nxe4 {[%clk 0:02:56.5]} 4... Bf5 {[%clk 0:03:00.2]} 5. Ng3 {[%clk
0:02:56.3]} 5... Bg6 {[%clk 0:03:00.5]} 6. N1e2 {[%clk 0:02:55]} 6... Nf6 {[%clk
0:02:58.1]} 7. h4 {[%clk 0:02:54.4]} 7... h6 {[%clk 0:02:52.5]} 8. Nf4 {[%clk
0:02:53.5]} 8... Bh7 {[%clk 0:02:53]} 9. Bd3 {[%clk 0:02:54.1]} 9... Bxd3 {[%clk
0:02:50.5]} 10. Qxd3 {[%clk 0:02:55]} 10... e6 {[%clk 0:02:32.5]} 11. Bd2 {[%clk
0:02:51.6]} 11... Nbd7 {[%clk 0:02:13.8]} 12. O-O-O {[%clk 0:02:42.1]} 12... Qc7
{[%clk 0:02:13.6]} 13. Nfh5 {[%clk 0:02:24.5]} 13... O-O-O {[%clk 0:02:12.6]}
14. Kb1 {[%clk 0:02:21.2]} 14... c5 {[%clk 0:01:49.3]} 15. Bf4 {[%clk
0:02:13.7]} 15... Qc6 {[%clk 0:01:44.9]} 16. dxc5 {[%clk 0:02:06]} 16... Bxc5
{[%clk 0:01:41.7]} 17. f3 {[%clk 0:01:36.4]} 17... Nd5 {[%clk 0:01:40.3]} 18.
Bc1 {[%clk 0:01:24.5]} 18... N7b6 {[%clk 0:01:10.7]} 19. Qe2 {[%clk 0:01:04.9]}
19... Na4 {[%clk 0:01:08.3]} 20. Ka1 {[%clk 0:00:54.2]} 20... Nac3 {[%clk
0:00:48.5]} 21. bxc3 {[%clk 0:00:48.9]} 21... Nxc3 {[%clk 0:00:48.7]} 22. Rxd8+
{[%clk 0:00:48.9]} 22... Rxd8 {[%clk 0:00:49.1]} 23. Qc4 {[%clk 0:00:48.9]}
23... Nd1 {[%clk 0:00:39.6]} 24. Bb2 {[%clk 0:00:19.3]} 24... Rd2 {[%clk
0:00:21.3]} 25. Ne4 {[%clk 0:00:14.9]} 25... Rd5 {[%clk 0:00:13]} 26. Nxg7
{[%clk 0:00:11.8]} 26... Ne3 {[%clk 0:00:11.8]} 27. Qe2 {[%clk 0:00:10.9]} 27...
Bd4 {[%clk 0:00:10.8]} 28. Bxd4 {[%clk 0:00:10.1]} 28... Nxc2+ {[%clk
0:00:11.1]} 29. Kb2 {[%clk 0:00:09.2]} 29... Rb5+ {[%clk 0:00:09.4]} 30. Qxb5
{[%clk 0:00:09.3]} 30... Qxb5+ {[%clk 0:00:08.3]} 31. Kxc2 {[%clk 0:00:10.2]}
31... Qc4+ {[%clk 0:00:07.7]} 32. Bc3 {[%clk 0:00:10.5]} 32... Qe2+ {[%clk
0:00:08.1]} 33. Kb3 {[%clk 0:00:10.5]} 33... Qxg2 {[%clk 0:00:09]} 34. Rd1
{[%clk 0:00:09.2]} 34... Qxf3 {[%clk 0:00:08.7]} 35. Nd6+ {[%clk 0:00:09.4]}
35... Kb8 {[%clk 0:00:08.4]} 36. Rd2 {[%clk 0:00:08]} 36... a5 {[%clk
0:00:08.1]} 37. Nge8 {[%clk 0:00:06.2]} 37... a4+ {[%clk 0:00:08.5]} 38. Kb2
{[%clk 0:00:06]} 38... Qc6 {[%clk 0:00:06.3]} 39. Nf6 {[%clk 0:00:04.6]} 39...
a3+ {[%clk 0:00:03.2]} 40. Kb3 {[%clk 0:00:03.8]} 40... b5 {[%clk 0:00:03.9]}
41. Nde4 {[%clk 0:00:01.9]} 41... Qc4+ {[%clk 0:00:03.9]} 42. Kc2 {[%clk
0:00:02.1]} 42... b4 {[%clk 0:00:04.8]} 43. Nd7+ {[%clk 0:00:01.1]} 43... Ka7
{[%clk 0:00:04.2]} 44. Rd4 {[%clk 0:00:01.2]} 44... Qxa2+ {[%clk 0:00:04.5]} 45.
Kd3 {[%clk 0:00:01.2]} 45... Qb1+ {[%clk 0:00:04.3]} 0-1

[Event "Early-Titled-Tuesday-Blitz-March-12-2024"]
[Site "Chess.com"]
[Date "2024.03.12"]
[Round "1"]
[White "Carlos-Godoy"]
[Black "djano"]
[Result "0-1"]
[WhiteElo "2042"]
[BlackElo "2588"]
[TimeControl "180+1"]
[EndTime "8:07:51 PDT"]
[Termination "djano won on time"]

1. e4 {[%clk 0:02:57.8]} 1... c5 {[%clk 0:02:59.4]} 2. Nf3 {[%clk 0:02:56.3]}
2... Nc6 {[%clk 0:02:59.6]} 3. d4 {[%clk 0:02:55.9]} 3... cxd4 {[%clk
0:02:59.7]} 4. Nxd4 {[%clk 0:02:55.7]} 4... g6 {[%clk 0:03:00.3]} 5. Be3 {[%clk
0:02:52.8]} 5... Bg7 {[%clk 0:03:00.3]} 6. Nc3 {[%clk 0:02:53.1]} 6... Nf6
{[%clk 0:03:00.5]} 7. Bc4 {[%clk 0:02:50.7]} 7... O-O {[%clk 0:03:00.4]} 8. Bb3
{[%clk 0:02:49.5]} 8... Re8 {[%clk 0:02:59.2]} 9. O-O {[%clk 0:02:47]} 9... d6
{[%clk 0:02:59.2]} 10. h3 {[%clk 0:02:45.2]} 10... Na5 {[%clk 0:02:59.1]} 11.
Qd2 {[%clk 0:02:36.7]} 11... b6 {[%clk 0:02:53.5]} 12. Rfe1 {[%clk 0:02:24.8]}
12... Bb7 {[%clk 0:02:50.2]} 13. Bh6 {[%clk 0:02:24.6]} 13... Bh8 {[%clk
0:02:47.3]} 14. Nf3 {[%clk 0:02:24.1]} 14... Nxb3 {[%clk 0:02:40.4]} 15. axb3
{[%clk 0:02:24.1]} 15... a6 {[%clk 0:02:34.9]} 16. Rad1 {[%clk 0:02:23.2]} 16...
Qc7 {[%clk 0:02:32.7]} 17. Bf4 {[%clk 0:02:17.1]} 17... Rac8 {[%clk 0:02:27.7]}
18. Qe2 {[%clk 0:02:06.8]} 18... Qc6 {[%clk 0:02:18.3]} 19. Rd2 {[%clk
0:01:32.6]} 19... Nd7 {[%clk 0:02:13.3]} 20. Nd5 {[%clk 0:01:07.4]} 20... a5
{[%clk 0:01:52.1]} 21. c3 {[%clk 0:01:05.6]} 21... Nc5 {[%clk 0:01:46]} 22. b4
{[%clk 0:00:55.6]} 22... axb4 {[%clk 0:01:46.1]} 23. Nxb4 {[%clk 0:00:56.1]}
23... Qxe4 {[%clk 0:01:41.4]} 24. Qxe4 {[%clk 0:00:52.8]} 24... Nxe4 {[%clk
0:01:41.7]} 25. Rde2 {[%clk 0:00:49.9]} 25... Nc5 {[%clk 0:01:39.8]} 26. Bxd6
{[%clk 0:00:47.8]} 26... Ne6 {[%clk 0:01:27.2]} 27. Be5 {[%clk 0:00:46.8]} 27...
Bxf3 {[%clk 0:01:25]} 28. gxf3 {[%clk 0:00:44.7]} 28... Bg7 {[%clk 0:01:21.6]}
29. Bxg7 {[%clk 0:00:41.7]} 29... Kxg7 {[%clk 0:01:22.5]} 30. Nd5 {[%clk
0:00:41.8]} 30... b5 {[%clk 0:01:21.2]} 31. Re4 {[%clk 0:00:35.2]} 31... Rc5
{[%clk 0:01:16.9]} 32. Nf4 {[%clk 0:00:32.7]} 32... Nxf4 {[%clk 0:01:11.8]} 33.
Rxf4 {[%clk 0:00:33.3]} 33... f5 {[%clk 0:01:11.7]} 34. Rb4 {[%clk 0:00:32.2]}
34... Rd5 {[%clk 0:01:11]} 35. Re6 {[%clk 0:00:29.8]} 35... h5 {[%clk
0:01:02.2]} 36. Rb6 {[%clk 0:00:29.3]} 36... Ra8 {[%clk 0:00:58.6]} 37. R6xb5
{[%clk 0:00:29.1]} 37... Ra1+ {[%clk 0:00:58.1]} 38. Kg2 {[%clk 0:00:29.7]}
38... Rdd1 {[%clk 0:00:59]} 39. f4 {[%clk 0:00:28.4]} 39... Rg1+ {[%clk
0:00:59.2]} 40. Kf3 {[%clk 0:00:27.7]} 40... Rh1 {[%clk 0:01:00.1]} 41. Rb7
{[%clk 0:00:23.9]} 41... Rae1 {[%clk 0:00:58.3]} 42. Rd4 {[%clk 0:00:19.9]}
42... Rxh3+ {[%clk 0:00:56.8]} 43. Kg2 {[%clk 0:00:20.5]} 43... Rh4 {[%clk
0:00:56]} 44. Rdd7 {[%clk 0:00:19.4]} 44... Kf7 {[%clk 0:00:51.4]} 45. Rd4
{[%clk 0:00:19.5]} 45... Rg4+ {[%clk 0:00:48.3]} 46. Kf3 {[%clk 0:00:18.5]}
46... h4 {[%clk 0:00:48.2]} 47. Rb8 {[%clk 0:00:13.5]} 47... Kg7 {[%clk
0:00:48.5]} 48. Rdd8 {[%clk 0:00:12.5]} 48... Re4 {[%clk 0:00:41.9]} 49. Rg8+
{[%clk 0:00:11.7]} 49... Kf6 {[%clk 0:00:42.5]} 50. Rgf8+ {[%clk 0:00:10.5]}
50... Ke6 {[%clk 0:00:41.6]} 51. Rb6+ {[%clk 0:00:08.9]} 51... Kd7 {[%clk
0:00:41.5]} 52. Rg8 {[%clk 0:00:07.9]} 52... Rexf4+ {[%clk 0:00:40.2]} 53. Ke2
{[%clk 0:00:08.5]} 53... Re4+ {[%clk 0:00:39.6]} 54. Kf1 {[%clk 0:00:07.9]}
54... h3 {[%clk 0:00:38.4]} 55. Rbxg6 {[%clk 0:00:06.4]} 55... h2 {[%clk
0:00:38.1]} 0-1

[Event "Early-Titled-Tuesday-Blitz-March-12-2024"]
[Site "Chess.com"]
[Date "2024.03.12"]
[Round "1"]
[White "el008"]
[Black "bardiya_Daneshvar"]
[Result "1-0"]
[WhiteElo "2529"]
[BlackElo "2890"]
[TimeControl "180+1"]
[EndTime "8:07:52 PDT"]
[Termination "el008 won on time"]

1. Nf3 {[%clk 0:03:00.9]} 1... d6 {[%clk 0:02:59.7]} 2. d4 {[%clk 0:02:59.6]}
2... b6 {[%clk 0:02:59.5]} 3. g3 {[%clk 0:02:59.6]} 3... Bb7 {[%clk 0:02:59.9]}
4. Bg2 {[%clk 0:03:00.3]} 4... g6 {[%clk 0:03:00.4]} 5. O-O {[%clk 0:03:00.8]}
5... Bg7 {[%clk 0:03:00.7]} 6. c4 {[%clk 0:03:01]} 6... Nf6 {[%clk 0:02:59.8]}
7. Nc3 {[%clk 0:02:59.5]} 7... Ne4 {[%clk 0:02:59.3]} 8. Nxe4 {[%clk 0:02:41.9]}
8... Bxe4 {[%clk 0:02:56.4]} 9. Ne1 {[%clk 0:02:36.7]} 9... Bxg2 {[%clk
0:02:55.4]} 10. Nxg2 {[%clk 0:02:34.1]} 10... O-O {[%clk 0:02:56.3]} 11. e4
{[%clk 0:02:33.8]} 11... c5 {[%clk 0:02:54.2]} 12. d5 {[%clk 0:02:31.2]} 12...
Nd7 {[%clk 0:02:50.9]} 13. Rb1 {[%clk 0:02:30.4]} 13... b5 {[%clk 0:02:49.6]}
14. cxb5 {[%clk 0:02:30.1]} 14... Qb6 {[%clk 0:02:48]} 15. a4 {[%clk 0:02:27.8]}
15... a6 {[%clk 0:02:47.9]} 16. bxa6 {[%clk 0:02:27.6]} 16... Rxa6 {[%clk
0:02:48.5]} 17. Ne3 {[%clk 0:02:26.8]} 17... Rfa8 {[%clk 0:02:46.9]} 18. Nc4
{[%clk 0:02:19.4]} 18... Qb7 {[%clk 0:02:39.5]} 19. a5 {[%clk 0:02:05.5]} 19...
Ne5 {[%clk 0:02:37.4]} 20. Nxe5 {[%clk 0:02:05.7]} 20... Bxe5 {[%clk 0:02:34.7]}
21. Bd2 {[%clk 0:02:06]} 21... Qb5 {[%clk 0:02:32.7]} 22. Qc2 {[%clk 0:02:01.6]}
22... Bd4 {[%clk 0:02:27.4]} 23. b3 {[%clk 0:01:59]} 23... Qe2 {[%clk
0:02:25.7]} 24. Rbe1 {[%clk 0:01:57.5]} 24... Qf3 {[%clk 0:02:20.2]} 25. Qc4
{[%clk 0:01:45.1]} 25... h5 {[%clk 0:02:13]} 26. b4 {[%clk 0:01:38.6]} 26... h4
{[%clk 0:02:03.4]} 27. Qe2 {[%clk 0:00:59.5]} 27... Qa3 {[%clk 0:01:55.8]} 28.
b5 {[%clk 0:00:50.5]} 28... Rxa5 {[%clk 0:01:46.2]} 29. Bxa5 {[%clk 0:00:51.4]}
29... Rxa5 {[%clk 0:01:46.4]} 30. Kg2 {[%clk 0:00:47.6]} 30... Ra4 {[%clk
0:01:40.4]} 31. b6 {[%clk 0:00:42.8]} 31... Rb4 {[%clk 0:01:27.7]} 32. Rb1
{[%clk 0:00:43.2]} 32... Bb2 {[%clk 0:01:24]} 33. Qe3 {[%clk 0:00:28.3]} 33...
Qa6 {[%clk 0:00:58.5]} 34. Rfd1 {[%clk 0:00:23.7]} 34... Qxb6 {[%clk 0:00:48.7]}
35. Qe2 {[%clk 0:00:23.6]} 35... c4 {[%clk 0:00:43.7]} 36. Rd2 {[%clk
0:00:17.7]} 36... c3 {[%clk 0:00:42.8]} 37. Rc2 {[%clk 0:00:18.2]} 37... Qd4
{[%clk 0:00:36]} 38. f3 {[%clk 0:00:17.5]} 38... Kg7 {[%clk 0:00:29.4]} 39. Rd1
{[%clk 0:00:18]} 39... Qe5 {[%clk 0:00:27]} 40. Qe3 {[%clk 0:00:18.1]} 40... f5
{[%clk 0:00:22.8]} 41. Qg5 {[%clk 0:00:13.2]} 41... hxg3 {[%clk 0:00:12.2]} 42.
hxg3 {[%clk 0:00:12]} 42... fxe4 {[%clk 0:00:05.2]} 43. Qxe5+ {[%clk 0:00:12.9]}
43... dxe5 {[%clk 0:00:04.6]} 44. Re1 {[%clk 0:00:11.8]} 44... exf3+ {[%clk
0:00:03.2]} 45. Kxf3 {[%clk 0:00:12.7]} 45... Kf6 {[%clk 0:00:03.2]} 46. Ke3
{[%clk 0:00:10.7]} 1-0

[Event "Early-Titled-Tuesday-Blitz-March-12-2024"]
[Site "Chess.com"]
[Date "2024.03.12"]
[Round "1"]
[White "KChor05"]
[Black "JaackCamel"]
[Result "1-0"]
[WhiteElo "2606"]
[BlackElo "2181"]
[TimeControl "180+1"]
[EndTime "8:07:52 PDT"]
[Termination "KChor05 won on time"]

1. d4 {[%clk 0:02:26.3]} 1... d5 {[%clk 0:02:57.8]} 2. c4 {[%clk 0:02:24.2]}
2... e6 {[%clk 0:02:56.6]} 3. Nf3 {[%clk 0:02:24.4]} 3... c6 {[%clk 0:02:55.4]}
4. g3 {[%clk 0:02:23.8]} 4... dxc4 {[%clk 0:02:53.6]} 5. Bg2 {[%clk 0:02:21.6]}
5... b5 {[%clk 0:02:52.9]} 6. O-O {[%clk 0:02:20.4]} 6... Bb7 {[%clk 0:02:52]}
7. a4 {[%clk 0:02:17.8]} 7... Nf6 {[%clk 0:02:50.3]} 8. Ne5 {[%clk 0:02:10.4]}
8... Qc8 {[%clk 0:02:49.5]} 9. Nc3 {[%clk 0:02:07.8]} 9... a6 {[%clk 0:02:43.9]}
10. b3 {[%clk 0:01:59.2]} 10... b4 {[%clk 0:02:42]} 11. Nxc4 {[%clk 0:01:45.5]}
11... bxc3 {[%clk 0:02:39.6]} 12. Nb6 {[%clk 0:01:46.1]} 12... Qc7 {[%clk
0:02:20.4]} 13. Nxa8 {[%clk 0:01:39.5]} 13... Bxa8 {[%clk 0:02:19.9]} 14. Bf4
{[%clk 0:01:40.4]} 14... Qa7 {[%clk 0:02:05.8]} 15. Rc1 {[%clk 0:01:33.1]} 15...
Nd5 {[%clk 0:02:02.4]} 16. Bxb8 {[%clk 0:01:20.8]} 16... Qxb8 {[%clk 0:02:00.3]}
17. e4 {[%clk 0:01:21.7]} 17... Nb4 {[%clk 0:01:53.4]} 18. Rxc3 {[%clk
0:01:21.6]} 18... a5 {[%clk 0:01:48.4]} 19. Qg4 {[%clk 0:01:20]} 19... g6 {[%clk
0:01:32.8]} 20. Rd1 {[%clk 0:01:18.5]} 20... Bg7 {[%clk 0:01:27.4]} 21. Rc5
{[%clk 0:01:18.7]} 21... Qb6 {[%clk 0:01:19.4]} 22. e5 {[%clk 0:01:05.2]} 22...
O-O {[%clk 0:01:16.8]} 23. h4 {[%clk 0:01:00.5]} 23... Nd5 {[%clk 0:01:10.1]}
24. h5 {[%clk 0:00:56.7]} 24... Qxb3 {[%clk 0:01:04.7]} 25. Rxa5 {[%clk
0:00:56.7]} 25... Nc3 {[%clk 0:00:49.2]} 26. Rf1 {[%clk 0:00:44.9]} 26... Qb4
{[%clk 0:00:43.3]} 27. Rc5 {[%clk 0:00:44.7]} 27... Nxa4 {[%clk 0:00:42.1]} 28.
Rcc1 {[%clk 0:00:44.5]} 28... c5 {[%clk 0:00:37.7]} 29. hxg6 {[%clk 0:00:41.2]}
29... hxg6 {[%clk 0:00:34.4]} 30. Bxa8 {[%clk 0:00:41.1]} 30... Rxa8 {[%clk
0:00:33.1]} 31. Qf3 {[%clk 0:00:41.9]} 31... Rf8 {[%clk 0:00:24.6]} 32. d5
{[%clk 0:00:38.6]} 32... exd5 {[%clk 0:00:20.2]} 33. Qxd5 {[%clk 0:00:38.5]}
33... Qd4 {[%clk 0:00:18.6]} 34. Rfd1 {[%clk 0:00:30.4]} 34... Qxe5 {[%clk
0:00:17.6]} 35. Qb3 {[%clk 0:00:22.8]} 35... Nb2 {[%clk 0:00:13.5]} 36. Re1
{[%clk 0:00:22.8]} 36... Qd4 {[%clk 0:00:12.1]} 37. Qc2 {[%clk 0:00:18.4]} 37...
Nd3 {[%clk 0:00:11.2]} 38. Rcd1 {[%clk 0:00:18.3]} 38... Nxe1 {[%clk 0:00:10.7]}
39. Rxe1 {[%clk 0:00:15.7]} 39... c4 {[%clk 0:00:09.7]} 40. Rc1 {[%clk
0:00:15.6]} 40... c3 {[%clk 0:00:09.8]} 41. Rd1 {[%clk 0:00:16.1]} 41... Qe5
{[%clk 0:00:09.3]} 42. Kg2 {[%clk 0:00:15.4]} 42... Rc8 {[%clk 0:00:08.9]} 43.
Rd7 {[%clk 0:00:14.6]} 43... Re8 {[%clk 0:00:06.9]} 44. Qb3 {[%clk 0:00:14.6]}
44... Qe4+ {[%clk 0:00:06.2]} 45. Kh2 {[%clk 0:00:13.8]} 45... Qe6 {[%clk
0:00:05.7]} 46. Qb7 {[%clk 0:00:13.2]} 46... Rf8 {[%clk 0:00:04.7]} 47. Rc7
{[%clk 0:00:13.4]} 47... Qe5 {[%clk 0:00:03.5]} 48. Re7 {[%clk 0:00:13.8]} 48...
Qh5+ {[%clk 0:00:03]} 49. Kg2 {[%clk 0:00:14.1]} 49... Qf5 {[%clk 0:00:01.6]}
50. Rc7 {[%clk 0:00:15]} 1-0